[Event "Turkish Championship 2022"]
[Site "Kemer-Antalya"]
[Date "2022.11.26"]
[Round "2.5"]
[White "Yaran, Siar"]
[Black "Agdelen, Huseyin Can"]
[Result "0-1"]
[ECO "A09"]
[WhiteElo "2291"]
[BlackElo "2416"]
[Annotator "TA"]
[PlyCount "80"]
[EventDate "2022.11.25"]
[EventCountry "TUR"]
[SourceTitle "playchess.com"]
[Source "ChessBase"]
[SourceQuality "1"]
[TimeControl "40/5400+30:1800+30"]

{[%evp 9,80,28,39,19,26,-29,-27,-32,-2,-62,-66,-79,-53,-68,-75,-70,-13,0,0,0,0,-8,11,11,8,-130,-130,-288,-307,-267,-270,-283,0,-142,-143,-123,-116,-117,-115,-134,-120,-125,-128,-132,-138,-302,-286,-883,-832,-5143,-5143,-29982,-29983,-29982,-1468,-880,-694,-29988,-778,-809,-659,-640,-422,-5871,-5916,-5527,-5543,-5310,-5173,-5126,-5122,-5106,-731]} 1. Nf3 {[%emt 0:01:00]} d5 {[%emt 0:04:00]} 2. c4 {[%emt 0:00:30]} d4 {[%emt 0:05:30]} 3. b4 {[%emt 0:01:30]} g5 {[%emt 0:06:30]} 4. Bb2 {[%emt 0:19:30]} Bg7 {[%emt 0:06:30]} 5. Nxg5 {[%emt 0:06:30]} e5 {[%emt 0:03:30]} 6. h4 {[%emt 0:10:30] A09: Réti Opening: 1 Nf3 d5 2 c4.} h6 {[%emt 0:09:30] [#]} 7. Nh3 $146 {[%emt 0:00:00]} (7. Ne4 $142) ({Predecessor:} 7. Ne4 f5 8. Nc5 Nf6 9. g3 O-O 10. Bg2 Qe7 11. Nd3 Nbd7 12. Na3 Nh5 13. e3 {0-1 (37) Gareyev,T (2584)-Andriasian,Z (2600) Philadelphia 2019}) 7... Qxh4 {[%emt 0:03:30]} 8. d3 {[%emt 0:02:00] Black has an edge.} Qe7 {[%emt 0:03:30]} 9. Nd2 {[%emt 0:03:30]} (9. Ba3 $11) 9... Qxb4 $15 {[%emt 0:07:30]} 10. Rb1 {[%emt 0:00:30][%cal Ob2d4]} Qa5 {[%emt 0:06:30] Black is much more active.} 11. g3 {[%emt 0:00:30]} Ne7 {[%emt 0:09:30]} 12. Bg2 {[%emt 0:01:30]} c6 {[%emt 0:04:30]} (12... Qxa2 $15 13. e3 dxe3 14. fxe3 Qa6) 13. O-O $11 {[%emt 0:01:30]} O-O {[%emt 0:02:30]} 14. e3 {[%emt 0:17:30]} dxe3 {[%emt 0:03:30]} (14... Qxa2 15. exd4 exd4 16. Nf4 $16) 15. fxe3 {[%emt 0:00:30]} Bf5 {[%emt 0:07:11]} (15... Qxa2 16. Ne4 c5 17. Nf6+ Bxf6 18. Rxf6 $18) 16. Ne4 {[%emt 0:04:30]} Nd7 {[%emt 0:06:06]} (16... Qxa2 $2 17. Bc3 $18) (16... Bxe4 {simplifies} 17. Bxe4 f5 18. Bg2 Nd7) 17. Rxf5 {[%emt 0:10:13]} Nxf5 $17 {[%emt 0:00:34]} 18. Qg4 $2 {[%emt 0:00:05]} (18. Qf3 $17 Ne7 19. Bc3 Qxa2 20. Rxb7) 18... Nxe3 $19 {[%emt 0:00:52]} (18... Qxa2 19. Nc3 Nxe3 20. Qe4 $15) 19. Qxd7 {[%emt 0:00:07]} Rad8 {[%emt 0:01:01] Chess con chili.} (19... Qxa2 20. Nc3 Rad8 21. Qe7 $17 (21. Qxb7 $2 Rb8 $19)) 20. Qe7 {[%emt 0:00:49]} Nxg2 $2 {[%emt 0:02:39]} (20... Qxa2 21. Nc3 Qb3 22. Nf2 $17) ({Black should try} 20... Rxd3 $19 21. Bf1 Rd1 22. Rxd1 Nxd1) 21. Kxg2 {[%emt 0:01:55]} (21. Bc3 $1 $11 Qxa2 22. Rb2 Qa1+ 23. Kxg2 Rxd3 24. Bxe5 Bxe5 25. Qxe5) 21... Qxa2 $17 {[%emt 0:00:17]} (21... Rxd3 $6 22. Nhf2 Qxa2 23. Nxd3 $11) 22. Nc3 {[%emt 0:01:33]} Qb3 {[%emt 0:00:10]} 23. Nf2 {[%emt 0:01:40]} Qc2 {[%emt 0:01:13]} 24. Qa3 {[%emt 0:01:59]} f5 $1 {[%emt 0:01:26]} ({Much less strong is} 24... Rxd3 25. Rc1 Rxc3 26. Bxc3 $14) 25. Rc1 {[%emt 0:00:59] Against e4} Qd2 {[%emt 0:00:05]} 26. Rd1 {[%emt 0:00:32] Prevents e4.} Qg5 {[%emt 0:00:06][%cal Oe5e4]} 27. Qxa7 $2 {[%emt 0:04:05]} (27. Bc1 $17 Qg6 28. c5) 27... e4 $1 $19 {[%emt 0:00:52] Threatens to win with ...Be5.} ({Weaker is} 27... f4 28. Nce4 Qh5 29. g4 f3+ 30. Kg3 $11 (30. Kg1 Qh4 $11)) 28. d4 {[%emt 0:00:18]} (28. Ba1) 28... Qh5 {[%emt 0:00:51] And now ...Qf3+ would win.} 29. g4 {[%emt 0:02:44]} fxg4 {[%emt 0:00:10][%cal Og4g3] ( -> ...g3!)} 30. Ncxe4 {[%emt 0:00:23]} g3 {[%emt 0:00:20]} 31. Kxg3 {[%emt 0:00:47] [#]} Qf3+ {[%emt 0:01:10]} (31... Rd6 $142 $3 {[%mdl 512]} 32. Ng4 Rg6 33. Nef2 Rxf2 $1 {[%mdl 512]} 34. Kxf2 Qxg4 35. Qa8+ Kh7 36. Qb8 Rf6+ 37. Ke3 Qh3+ 38. Qg3 Qxg3+ 39. Kd2 Rf2+ 40. Kc1 Qb3 41. Rd2 Rf1+ 42. Rd1 Rxd1#) 32. Kh2 {[%emt 0:00:06]} Qe2 {[%emt 0:00:26][%csl LRb2,LRc4,LRf2]} 33. Kg1 {[%emt 0:02:15] [#]} Qxb2 {[%emt 0:00:18]} (33... Rd6 $142 $3 {[%mdl 512]} 34. Rd2 (34. Qa8 Rg6+) 34... Rg6+ 35. Kh2 {[#]} Rxf2+ $1 {[%mdl 512]} 36. Nxf2 Qxd2 37. Qb8+ Bf8 38. Qxf8+ Kxf8 39. Ba3+ Kg8 40. Kh3 Qxf2 41. Bd6 Qg2+ 42. Kh4 Qg4#) 34. d5 {[%emt 0:00:00] Black is clearly winning.} cxd5 {[%emt 0:01:41]} 35. cxd5 {[%emt 0:00:00]} Ra8 {[%emt 0:00:00] Inhibits d6.} 36. Qc5 {[%emt 0:00:07]} (36. Qe3 $142) 36... Ra1 {[%emt 0:00:15]} 37. Rxa1 {[%emt 0:01:23]} Qxa1+ {[%emt 0:00:30]} 38. Kg2 {[%emt 0:00:00]} Bd4 {[%emt 0:01:10]} 39. Qd6 {[%emt 0:00:02]} Bxf2 {[%emt 0:00:45]} 40. Qe6+ {[%emt 0:00:00]} Kh7 {[%emt 0:00:00] Weighted Error Value: White=0.97/Black=0.48} 0-1

[Event "Turkish Championship 2022"]
[Site "Kemer-Antalya"]
[Date "2022.11.27"]
[Round "3.1"]
[White "Agdelen, Huseyin Can"]
[Black "Yavuz, Efe Metehan"]
[Result "1-0"]
[ECO "C42"]
[WhiteElo "2416"]
[BlackElo "2256"]
[Annotator "TA"]
[PlyCount "105"]
[EventDate "2022.11.25"]
[EventCountry "TUR"]
[SourceTitle "playchess.com"]
[Source "ChessBase"]
[SourceQuality "1"]
[TimeControl "40/5400+30:1800+30"]

{[%evp 18,105,0,0,19,0,0,0,0,0,63,66,212,204,205,195,193,198,187,202,204,181,179,129,129,126,172,152,160,155,168,156,200,190,197,193,185,170,188,188,196,196,196,196,189,176,216,216,216,216,216,202,214,201,242,242,243,241,243,221,213,181,169,168,229,216,226,197,274,264,375,342,452,433,602,588,372,372,702,692,625,579,465,427,1490,1414,29982,1274,29990,1308]} 1. e4 {[%emt 0:05:00]} e5 {[%emt 0:03:00]} 2. Nf3 {[%emt 0:00:30]} Nf6 {[%emt 0:00:00]} 3. Nxe5 {[%emt 0:03:30]} d6 {[%emt 0:00:00]} 4. Nf3 {[%emt 0:04:30]} Nxe4 {[%emt 0:00:30]} 5. Qe2 {[%emt 0:06:30]} Qe7 {[%emt 0:00:00]} 6. d3 {[%emt 0:00:00]} Nf6 {[%emt 0:00:00]} 7. Bg5 {[%emt 0:00:00]} Qxe2+ {[%emt 0:02:30]} 8. Bxe2 {[%emt 0:00:30]} Be7 {[%emt 0:00:00]} 9. Nc3 {[%emt 0:02:30]} h6 {[%emt 0:05:00]} 10. Bf4 {[%emt 0:04:30] 10.Bd2 is a critical line.} O-O {[%emt 0:06:30] C42: Petroff Defence: 3 Nxe5 and unusual White 3rd moves.} 11. h3 {[%emt 0:02:30]} Nc6 {[%emt 0:17:30]} 12. O-O-O {[%emt 0:24:30] [#]} Rb8 $146 {[%emt 0:05:30] The position is equal.} ({Predecessor:} 12... Nb4 13. Rhe1 Nbd5 14. Nxd5 Nxd5 15. Bg3 Bf6 16. Bh4 Bxh4 17. Nxh4 Nf4 18. Bf1 Be6 {1-0 (41) Zenklusen,R (2220)-Bucher,D (2256) Biel 2001}) 13. d4 {[%emt 0:04:30][%cal Bd3d4,Bd4d5][%mdl 32] Prevents b5.} Nb4 {[%emt 0:02:30]} (13... Bd8 $11) 14. d5 $1 $14 {[%emt 0:03:30]} b5 {[%emt 0:24:30]} (14... a5 $14) 15. a3 $18 {[%emt 0:02:30]} (15. Nxb5 Nfxd5 16. Bd2 Nxa2+ 17. Kb1 Nab4 18. Bxb4 Nxb4 19. Nxc7 Bf5 $17) 15... Na6 {[%emt 0:00:30]} 16. Bxb5 {[%emt 0:00:30]} (16. Nxb5 Bb7) 16... Ne4 {[%emt 0:04:30]} 17. Nxe4 {[%emt 0:04:30]} Rxb5 {[%emt 0:00:00]} 18. Rhe1 {[%emt 0:02:30]} Rb8 {[%emt 0:02:00]} 19. Nd4 {[%emt 0:06:30] [#] Nc6 is the strong threat.} Bd7 {[%emt 0:04:30]} 20. Nc5 {[%emt 0:03:10]} Nxc5 $16 {[%emt 0:01:30]} 21. Rxe7 {[%emt 0:00:17] And now b4 would win.} Rfd8 {[%emt 0:00:00]} (21... Rfe8 $16 22. Rxe8+ Rxe8) 22. Bd2 {[%emt 0:05:23][%cal Bf4d2,Bd2b4,Bb4c3][%mdl 32]} Kf8 {[%emt 0:01:00]} 23. Re3 $36 {[%emt 0:00:28][%mdl 2048] Keeping Black busy. White is more active.} Rdc8 {[%emt 0:02:24]} 24. b3 {[%emt 0:05:13]} Rb7 {[%emt 0:01:19]} 25. Bb4 {[%emt 0:01:11]} Na6 {[%emt 0:00:40]} 26. Bc3 {[%emt 0:00:06]} Nb8 {[%emt 0:00:25]} 27. Bb2 {[%emt 0:00:38]} a5 {[%emt 0:04:22]} 28. a4 {[%emt 0:00:22]} Na6 {[%emt 0:01:20]} 29. Bc3 {[%emt 0:00:31]} Nb4 {[%emt 0:02:51]} 30. Bxb4 {[%emt 0:00:08]} Rxb4 {[%emt 0:00:24]} 31. Rc3 {[%emt 0:02:06]} g5 {[%emt 0:01:14]} 32. Nc6 {[%emt 0:01:47]} Bxc6 {[%emt 0:01:36]} 33. Rxc6 $18 {[%emt 0:00:30][%mdl 4096] Endgame KRR-KRR} (33. dxc6 $6 Rf4 $16) 33... Rb6 {[%emt 0:00:00]} 34. Rc4 {[%emt 0:01:43]} Ke7 {[%emt 0:00:00]} 35. Re1+ {[%emt 0:00:46]} Kd7 {[%emt 0:02:31]} 36. Rce4 {[%emt 0:00:37] Threatening mate with Re7+.} Rf8 {[%emt 0:00:01]} 37. Re7+ {[%emt 0:00:42]} Kd8 {[%emt 0:00:03]} 38. Kb2 {[%emt 0:00:44]} Rb4 {[%emt 0:00:38]} 39. R7e4 {[%emt 0:00:16]} Rxe4 {[%emt 0:02:16]} 40. Rxe4 {[%emt 0:00:00] KR-KR} Kc8 {[%emt 0:00:00]} (40... Kd7 $142 41. Kc3 Rb8) 41. c3 {[%emt 0:01:22][%cal Bc2c3,Bc3b4,Bb4b5][%mdl 32]} Kb7 {[%emt 0:05:26]} 42. b4 {[%emt 0:02:30]} axb4 {[%emt 0:03:30]} (42... f5 $142 43. Re6 h5) 43. cxb4 {[%emt 0:00:00] aiming for Kb3.} ({Don't take} 43. Rxb4+ $6 Ka6 44. Re4 c6 $16) 43... Rg8 {[%emt 0:00:30]} (43... f5 $142 44. Re6 f4) 44. Re7 {[%emt 0:01:00]} f5 {[%emt 0:00:30]} 45. Kc3 {[%emt 0:01:30]} h5 {[%emt 0:02:30]} 46. b5 {[%emt 0:04:30]} h4 {[%emt 0:02:30]} 47. a5 {[%emt 0:00:30][%cal Ba4a5,Ba5b6][%mdl 32]} Kb8 $2 {[%emt 0:00:30]} (47... g4 48. Rh7 gxh3 49. gxh3 Rg1) 48. Kb4 {[%emt 0:16:41]} g4 {[%emt 0:02:30]} 49. b6 {[%emt 0:00:06]} cxb6 {[%emt 0:00:30]} 50. axb6 {[%emt 0:00:06]} f4 {[%emt 0:00:30] [#]} (50... Rc8 $142 51. Kb5 Rc2 52. hxg4 Rb2+ 53. Kc6 Rc2+ 54. Kxd6 fxg4) 51. hxg4 $1 {[%emt 0:01:03]} Rg5 {[%emt 0:03:30]} 52. Kc4 {[%emt 0:00:54]} (52. Kb5 $142 Rg8 53. Rh7 Rc8 54. Ka6 f3 55. gxf3 Rc4 56. Rh8+ Rc8 57. Rxh4) 52... Re5 {[%emt 0:00:30]} 53. Rf7 {[%emt 0:00:59] Weighted Error Value: White=0.09 (flawless) /Black=0.54} (53. Rxe5 $142 dxe5 54. d6 Kc8 55. Kc5 e4 56. Kc6 Kd8 57. b7 Ke8 58. b8=Q+ Kf7 59. d7 Kg6 60. d8=Q Kh7 61. Qh8+ Kg6 62. Qbg8#) 1-0

[Event "Turkish Championship 2022"]
[Site "Kemer-Antalya"]
[Date "2022.11.27"]
[Round "3.2"]
[White "Isik, Alparslan"]
[Black "Yaran, Siar"]
[Result "1-0"]
[ECO "A67"]
[WhiteElo "2463"]
[BlackElo "2291"]
[Annotator "TA"]
[PlyCount "83"]
[EventDate "2022.11.25"]
[EventCountry "TUR"]
[SourceTitle "playchess.com"]
[Source "ChessBase"]
[SourceQuality "1"]
[TimeControl "40/5400+30:1800+30"]

{[%evp 18,83,56,41,38,41,45,7,7,4,36,39,47,29,26,-40,-36,-68,-60,-113,-127,-125,-73,-86,18,20,22,32,20,32,111,123,122,23,66,73,134,121,133,129,137,125,255,173,163,164,303,301,310,305,301,296,847,245,305,282,296,291,496,533,648,506,867,860,818,798,2750,989]} 1. d4 {[%emt 0:04:00] Baldauf,M} Nf6 {[%emt 0:01:00]} 2. c4 {[%emt 0:00:30]} c5 {[%emt 0:02:30]} 3. d5 {[%emt 0:00:30]} e6 {[%emt 0:00:30]} 4. Nc3 {[%emt 0:00:00]} exd5 {[%emt 0:00:30]} 5. cxd5 {[%emt 0:00:00]} d6 {[%emt 0:00:00]} 6. e4 {[%emt 0:02:30]} g6 {[%emt 0:00:00]} 7. f4 {[%emt 0:00:00]} Bg7 {[%emt 0:00:30]} 8. Bb5+ {[%emt 0:00:00]} Nfd7 {[%emt 0:00:00]} 9. Bd3 {[%emt 0:01:30]} Qh4+ {[%emt 0:00:00]} 10. g3 {[%emt 0:00:30]} Qd8 {[%emt 0:00:30] A67: Modern Benoni: Taimanov Variation.} 11. Nf3 {[%emt 0:00:30]} O-O {[%emt 0:00:00] [#]} 12. Kf1 $146 {[%emt 0:06:30]} ({Predecessor:} 12. O-O Nf6 13. Qb3 Na6 14. e5 Nd7 15. e6 Nb6 16. f5 c4 17. Bxc4 Nc5 18. Qb4 gxf5 {1-0 (56) Cheparinov,I (2685)-Pantsulaia,L (2613) Gjakova 2016 CBM 173 [Baldauf,M]}) 12... Na6 {[%emt 0:07:00] The position is equal.} 13. Kg2 {[%emt 0:00:30]} Nc7 {[%emt 0:10:30]} 14. Re1 {[%emt 0:00:30]} Re8 {[%emt 0:03:30]} 15. Qc2 {[%emt 0:13:30]} Rb8 {[%emt 0:02:30]} 16. a3 {[%emt 0:00:30]} ({White should try} 16. b3 $11) 16... b5 $15 {[%emt 0:05:30]} 17. b4 {[%emt 0:01:30]} a5 {[%emt 0:07:30]} (17... f5 {keeps more tension.} 18. Bb2 c4 19. Bf1 fxe4 20. Nxe4 Nf6) 18. Rb1 {[%emt 0:06:30]} (18. bxa5 $2 b4 19. axb4 cxb4 $19) (18. Bb2 $1 $15) 18... axb4 $17 {[%emt 0:00:00]} (18... c4 $6 19. Bf1 $15) 19. axb4 {[%emt 0:00:30]} cxb4 {[%emt 0:00:00]} (19... c4 $142 20. Bf1 f5) 20. Rxb4 {[%emt 0:05:30][%cal Rc3b5]} Na6 {[%emt 0:01:30]} (20... Nc5 $17 {...N7a6 is the strong threat.} 21. Be3 (21. Bxb5 $2 {perishes.} Bxc3 22. Qxc3 Nxb5 $19) (21. Nxb5 $2 {loses.} Ba6 $19) 21... N7a6 22. Bxc5 (22. Rxb5 $2 Nxd3 23. Qxd3 Bxc3 $19) 22... dxc5) 21. Rxb5 $11 {[%emt 0:11:30]} Nb4 {[%emt 0:00:30] [#]} 22. Rxb4 {[%emt 0:00:30]} Rxb4 {[%emt 0:00:30]} 23. Ba3 {[%emt 0:00:00]} Qa5 {[%emt 0:03:30]} 24. Bxb4 $16 {[%emt 0:01:00]} Qxb4 {[%emt 0:00:00] [#]} 25. Na4 {[%emt 0:13:30]} (25. Nb5 $1 $16) 25... Nf6 {[%emt 0:05:00]} 26. Rb1 {[%emt 0:00:30]} Qa3 {[%emt 0:03:30]} ({Better is} 26... Qa5) 27. h3 $36 {[%emt 0:01:30][%mdl 2048] Black is under strong pressure.} h6 {[%emt 0:34:03]} 28. Nd2 {[%emt 0:09:30] Hoping for Nc4.} Bd7 {[%emt 0:05:47]} 29. Nb6 {[%emt 0:00:30]} g5 {[%emt 0:02:46] This move loses the game for Black.} (29... Rd8 $16 30. Rb3 Qa5) 30. Nxd7 {[%emt 0:02:09]} Nxd7 {[%emt 0:00:42]} 31. Bb5 {[%emt 0:00:10]} gxf4 {[%emt 0:01:23]} (31... Qa7 $142 32. Nc4 Qc7) 32. Bxd7 $18 {[%emt 0:02:46]} Qxg3+ {[%emt 0:00:30]} 33. Kh1 {[%emt 0:00:00]} Bd4 {[%emt 0:01:44][%cal Of4f3]} 34. Qd1 {[%emt 0:03:03] Prevents f3. Strongly threatening Nf3.} (34. Bxe8 $2 Qxh3#) 34... Kh8 $2 {[%emt 0:03:24]} (34... Ra8 35. Qg4+ Kf8 36. Qxg3 fxg3) 35. Qf3 $2 {[%emt 0:03:41]} (35. Bxe8 $2 Qxh3#) (35. Nf3 Ra8 36. Qxd4+ Qg7 37. Qc4) 35... Rg8 {[%emt 0:00:30]} 36. Qxg3 {[%emt 0:02:26]} Rxg3 {[%emt 0:00:03]} 37. Rf1 {[%emt 0:00:00] Prevents f3.} Be5 $2 {[%emt 0:00:57]} (37... Rc3 38. Nf3 (38. Rxf4 Be3 $16) 38... Bf6) 38. Nc4 {[%emt 0:01:40] White is clearly winning.} f6 {[%emt 0:00:05]} 39. Rg1 {[%emt 0:02:20]} Rc3 {[%emt 0:00:25]} (39... Rxg1+ $142 40. Kxg1 Bd4+ 41. Kg2 Bc5) 40. Nxe5 {[%emt 0:00:37]} fxe5 {[%emt 0:00:00]} 41. Rg6 {[%emt 0:02:08][%csl LRd6,LRh6]} f3 {[%emt 0:00:11]} 42. Kg1 {[%emt 0:00:30] Weighted Error Value: White=0.45/Black=0.53} 1-0

[Event "Turkish Championship 2022"]
[Site "Kemer-Antalya"]
[Date "2022.11.27"]
[Round "3.3"]
[White "Gokbulut, Julia"]
[Black "Koksal, Ege"]
[Result "1/2-1/2"]
[ECO "E15"]
[WhiteElo "1912"]
[BlackElo "2321"]
[Annotator "TA"]
[PlyCount "160"]
[EventDate "2022.11.25"]
[EventCountry "TUR"]
[SourceTitle "playchess.com"]
[Source "ChessBase"]
[SourceQuality "1"]
[TimeControl "40/5400+30:1800+30"]

{[%evp 12,160,27,30,34,25,22,28,34,34,34,34,34,34,38,30,36,24,14,0,0,0,0,0,0,0,0,4,0,0,0,0,0,-23,-20,-25,24,0,13,-1,14,15,14,14,49,15,18,13,12,12,17,0,4,0,21,11,128,130,114,32,53,28,41,6,4,0,0,0,0,0,0,6,0,0,0,0,0,0,0,0,0,0,0,0,0,0,0,0,0,0,0,0,0,0,1029,945,12830,1127,1083,0,0,0,0,0,0,0,0,0,0,0,0,0,0,0,0,0,0,0,0,0,0,0,0,0,0,0,0,0,0,0,0,0,0,0,27999,27999,27999,0,0,0,0,0,0,0,0,0,0,0,0,0,0]} 1. d4 {[%emt 0:01:00]} Nf6 {[%emt 0:07:00]} 2. Nf3 {[%emt 0:00:30]} e6 {[%emt 0:00:30]} 3. c4 {[%emt 0:00:30]} b6 {[%emt 0:01:30]} 4. g3 {[%emt 0:00:30]} Ba6 {[%emt 0:02:30]} 5. b3 {[%emt 0:00:30]} d5 {[%emt 0:00:00]} 6. Bg2 {[%emt 0:04:30]} c6 {[%emt 0:00:00]} 7. O-O {[%emt 0:00:00]} Nbd7 {[%emt 0:00:30] E15: Queen's Indian: 4 g3 sidelines, 4 g3 Ba6 and 4 g3 Bb7 early deviations.} 8. Nfd2 {[%emt 0:02:00]} Be7 {[%emt 0:05:30]} 9. e4 {[%emt 0:01:30]} O-O {[%emt 0:00:30] White has an edge.} 10. e5 {[%emt 0:04:30]} Ne8 {[%emt 0:00:30]} 11. Re1 {[%emt 0:04:30]} Nc7 {[%emt 0:00:30]} 12. Nc3 {[%emt 0:03:30]} Rc8 {[%emt 0:01:30]} 13. Bb2 {[%emt 0:01:30]} c5 {[%emt 0:11:30] [#]} 14. dxc5 $146 {[%emt 0:05:30]} ({Predecessor:} 14. Nxd5 exd5 15. cxd5 cxd4 16. d6 Nc5 17. Bxd4 Nd3 18. dxe7 Qxe7 19. Re4 Rfd8 20. Qh5 {½-½ (60) Le,Q (2718)-Kovalyov,A (2647) Kenner 2016}) 14... Nxc5 {[%emt 0:00:30] And now ...Nd3 would win.} 15. Qb1 {[%emt 0:04:30] Inhibits Nd3.} dxc4 {[%emt 0:08:30]} 16. Nxc4 {[%emt 0:00:30]} Bxc4 {[%emt 0:00:30]} 17. bxc4 {[%emt 0:00:00]} Qd3 {[%emt 0:05:30]} 18. Bf1 $1 {[%emt 0:02:00] A strong pair of Bishops.} Qxb1 {[%emt 0:05:30]} 19. Raxb1 {[%emt 0:01:30]} Rfd8 {[%emt 0:00:00]} 20. Rbd1 {[%emt 0:00:30]} f5 {[%emt 0:01:00]} 21. f4 {[%emt 0:07:30]} g5 {[%emt 0:04:30]} 22. Rxd8+ {[%emt 0:07:30]} Rxd8 {[%emt 0:00:30]} 23. Rd1 {[%emt 0:01:30]} Rc8 {[%emt 0:03:30]} (23... Rxd1 $142 24. Nxd1 Na4) 24. fxg5 {[%emt 0:03:30]} Bxg5 {[%emt 0:00:00]} 25. Ba3 {[%emt 0:03:30]} Be7 {[%emt 0:08:00]} 26. Kg2 {[%emt 0:04:30]} Kf8 {[%emt 0:03:30]} 27. Be2 {[%emt 0:00:30]} Ne8 {[%emt 0:07:30]} 28. g4 {[%emt 0:02:30]} Ng7 {[%emt 0:00:30]} 29. h3 {[%emt 0:02:30]} a6 {[%emt 0:02:30] Inhibits Nb5.} 30. Bc1 {[%emt 0:02:30]} Kf7 {[%emt 0:00:30]} 31. Be3 {[%emt 0:04:30]} Kg6 {[%emt 0:03:29]} 32. Rb1 {[%emt 0:01:30]} Nd7 {[%emt 0:02:29]} 33. Na4 {[%emt 0:05:30]} Bc5 {[%emt 0:07:48]} (33... Nxe5 $11 {keeps the balance.} 34. Nxb6 Rd8) 34. Nxc5 $16 {[%emt 0:00:30]} (34. Nxb6 $6 Nxb6 35. Bxc5 Rxc5 $11) 34... bxc5 {[%emt 0:00:01]} 35. Rb7 {[%emt 0:02:32] White is more active.} (35. Bf4 $16) 35... Nxe5 $14 {[%emt 0:00:55]} 36. Rb6 {[%emt 0:00:24]} (36. Bf4 $5 {[%cal Rf4e5]} Nc6 37. Bf3 $14) 36... a5 {[%emt 0:03:24]} 37. Rb5 {[%emt 0:03:32]} h5 {[%emt 0:00:27]} 38. Rxa5 {[%emt 0:03:39]} hxg4 {[%emt 0:00:35]} 39. Rxc5 {[%emt 0:01:06]} (39. Bxc5 Nh5 40. hxg4 Nf4+ 41. Kf1 fxg4 $15) 39... gxh3+ {[%emt 0:00:01]} 40. Kxh3 {[%emt 0:00:41]} Rh8+ {[%emt 0:00:00]} 41. Kg2 {[%emt 0:00:36]} Nd7 {[%emt 0:04:21]} 42. Rc7 {[%emt 0:01:30]} Nf6 {[%emt 0:02:30]} 43. a4 {[%emt 0:08:30][%cal Ba2a4,Ba4a5,Ba5a6,Ba6a7][%mdl 32]} e5 $1 {[%emt 0:00:30]} 44. a5 {[%emt 0:04:30]} f4 {[%emt 0:00:30]} 45. Bb6 {[%emt 0:04:30]} e4 {[%emt 0:10:30]} 46. a6 {[%emt 0:02:30]} Ne6 {[%emt 0:02:46]} 47. Rc6 {[%emt 0:01:30]} Kf5 {[%emt 0:02:02]} 48. a7 {[%emt 0:01:30]} Nd7 {[%emt 0:03:50]} 49. Bg4+ {[%emt 0:09:43]} Kxg4 {[%emt 0:00:02]} 50. Rxe6 $11 {[%emt 0:00:00][%mdl 4096] [#] Endgame Threatens to win with Bd4. KRB-KRN} f3+ {[%emt 0:05:57]} 51. Kf2 {[%emt 0:00:07]} Kf5 {[%emt 0:02:13]} 52. Rh6 {[%emt 0:01:15] Chess con chili.} Rg8 {[%emt 0:01:47][%mdl 8192]} (52... Rxh6 $11 53. a8=Q (53. a8=B Nxb6 54. Bb7 Kf4 55. Ke1 e3 56. Kd1 Rh2 57. Bc6 Nxc4 58. Bd7 Rb2 59. Be6 e2+ 60. Ke1 Rb1+ 61. Kf2 e1=Q#) 53... Rxb6) 53. Bd4 $18 {[%emt 0:00:50]} Kf4 {[%emt 0:03:49]} 54. Rh4+ {[%emt 0:00:52]} (54. Rd6 $142 Rg2+ 55. Kf1) 54... Kf5 {[%emt 0:00:34]} 55. Rh8 $2 {[%emt 0:00:57]} ({Better is} 55. Rh5+ $18 Ke6 56. Rh6+ Kf7 57. c5) 55... Rxh8 $11 {[%emt 0:01:02]} 56. Bxh8 {[%emt 0:00:30] KB-KN} Nb6 {[%emt 0:00:00]} 57. Bd4 {[%emt 0:00:52]} (57. c5 $5 Na8 $8 58. Kg3 $11) 57... Na8 {[%emt 0:00:00]} 58. Ke3 {[%emt 0:01:08]} Nc7 {[%emt 0:00:13]} 59. Bc3 {[%emt 0:01:11] Black must now prevent Be1.} Na8 {[%emt 0:01:21]} 60. Ba5 {[%emt 0:01:24]} Ke5 {[%emt 0:00:02]} 61. Be1 {[%emt 0:01:09]} (61. Bb4 $5 f2 $8 62. Ke2 $11 (62. Kxf2 Kd4 $11)) 61... Kd6 {[%emt 0:02:01]} 62. Kxe4 {[%emt 0:00:54]} Kc5 {[%emt 0:00:01]} 63. Kd3 {[%emt 0:00:51]} Kb6 {[%emt 0:00:57]} 64. Bf2+ {[%emt 0:00:30]} Kb7 {[%emt 0:00:00]} 65. Ke4 {[%emt 0:00:16]} Nc7 {[%emt 0:00:00]} 66. Kxf3 {[%emt 0:00:00]} Ne8 {[%emt 0:00:00]} 67. Bc5 {[%emt 0:00:44]} Nc7 {[%emt 0:01:29]} 68. Ke4 {[%emt 0:00:21]} Na8 {[%emt 0:00:23]} 69. Kd5 {[%emt 0:00:57]} Nc7+ {[%emt 0:00:12]} 70. Kd6 {[%emt 0:00:04]} Ne8+ {[%emt 0:00:47]} 71. Kd7 {[%emt 0:00:32]} Nc7 {[%emt 0:00:38] Prevents a8Q+.} 72. Bd4 {[%emt 0:01:21]} Na8 {[%emt 0:00:29] [#]} 73. c5 $1 {[%emt 0:02:19]} Nc7 {[%emt 0:01:56]} 74. c6+ $2 {[%emt 0:00:30]} (74. a8=Q+ Nxa8 75. c6+ Ka6 76. Kc8 Ka5 77. Kb7 Kb4 78. Kxa8 Kc4 79. Ba7) 74... Ka8 {[%emt 0:00:00] The position is equal.} 75. Be5 {[%emt 0:01:01]} Na6 {[%emt 0:00:25]} 76. Bb8 {[%emt 0:00:31]} Nc5+ {[%emt 0:00:43]} 77. Kc7 {[%emt 0:01:23]} Ne6+ {[%emt 0:00:44]} 78. Kd6 {[%emt 0:00:58][%cal Od6e7] aiming for Ke7!} Nd4 {[%emt 0:00:15]} 79. c7 {[%emt 0:01:23]} Nb5+ {[%emt 0:00:30]} 80. Kc6 {[%emt 0:00:30]} Nxc7 $1 {[%emt 0:00:00][%mdl 64] Weighted Error Value: White=0.20 (precise) /Black=0.07 (flawless)} 1/2-1/2